[Event "GCT Superbet Blitz Poland 2025"]
[Site "Warsaw"]
[Date "2025.04.30"]
[Round "15"]
[White "Firouzja, Alireza"]
[Black "Aronian, Levon"]
[Result "1-0"]
[ECO "C02"]
[WhiteElo "2757"]
[BlackElo "2747"]
[Annotator "ChessBase"]
[PlyCount "77"]
[EventDate "2025.??.??"]
[EventType "blitz"]
[TimeControl "300+2"]

1. e4 {[%emt 0:00:01]} e6 {[%emt 0:00:01]} 2. d4 {[%emt 0:00:01]} d5 {[%emt 0:00:00]} 3. e5 {[%emt 0:00:00]} c5 4. c3 Nc6 {[%emt 0:00:02]} 5. Nf3 {[%emt 0:00:02]} Qb6 {[%emt 0:00:02]} 6. a3 {[%emt 0:00:04]} Nh6 {[%emt 0:00:02]} 7. Bd3 {[%emt 0:00:04]} cxd4 {[%emt 0:00:04]} 8. O-O {[%emt 0:00:02]} Nf5 {[%emt 0:00:04]} 9. b4 {[%emt 0:00:14]} a6 {[%emt 0:00:06]} ({RR} 9... Be7 10. Bb2 Bd7 11. cxd4 h5 12. Bxf5 exf5 13. Nc3 Be6 14. Qd3 a6 15. Bc1 Rc8 16. h4 Na7 17. Bg5 Bxg5 18. Nxg5 Nb5 19. Ne2 Rc4 20. Rfd1 Qc6 21. Qg3 Nc3 22. Nf4 Nxd1 23. Ngxe6 Rc1 24. Nxg7+ {Firouzja,A (2757)-Goltsev,D (2226) chess.com INT 2025 1-0 (31)}) 10. Re1 {[%emt 0:00:17]} ({RR} 10. Bb2 h5 11. cxd4 Be7 12. Bxf5 exf5 13. Nc3 Be6 14. Na4 Qa7 15. h4 b6 16. Rc1 Rc8 17. Qd2 Bd8 18. Rc2 Qd7 19. Rfc1 Na7 20. Rxc8 Nxc8 21. Nc3 b5 22. Qf4 Nb6 23. Ne2 Nc4 24. Rc2 Be7 {Domin,Y (2270)-Goltsev,D (2226) chess.com INT 2025 0-1 (119)}) 10... Be7 {[%emt 0:00:17]} 11. Ra2 {[%emt 0:00:22]} dxc3 $146 {[%emt 0:00:34]} ({RR} 11... Bd7 12. Bxf5 exf5 13. cxd4 Be6 14. Nc3 O-O 15. Na4 Qa7 16. Nc5 Bxc5 17. dxc5 Rad8 18. Nd4 Nxd4 19. Qxd4 Rc8 20. Rc2 h6 21. Rc3 Rc6 22. Rg3 Kh7 23. Qh4 Qb8 24. Rxg7+ Kxg7 25. Bxh6+ Kg8 26. Qg5+ {Grischuk,A (2775)-Levitsky,A (2329) Chess.com INT 2021 1-0}) ({RR} 11... Bd7 12. Bxf5 exf5 13. cxd4 Be6 14. Nc3 O-O 15. Na4 Qa7 16. Nc5 Bxc5 17. dxc5 Rad8 18. Nd4 Nxd4 19. Qxd4 Rc8 20. Rc2 h6 21. Rc3 Rc6 22. Rg3 Kh7 23. Qh4 Qb8 24. Rxg7+ Kxg7 25. Bxh6+ Kg8 26. Qg5+ {Grischuk,A (2775)-Levitsky,A (2329) Chess.com INT 2021 1-0}) 12. Bxf5 {[%emt 0:00:36]} exf5 {[%emt 0:00:02]} 13. Nxc3 {[%emt 0:00:01]} d4 {[%emt 0:00:46]} 14. Nd5 {[%emt 0:00:03]} Qd8 {[%emt 0:00:01]} 15. Nf6+ {[%emt 0:00:01]} Kf8 {[%emt 0:00:11]} 16. Nh5 {[%emt 0:00:01]} Be6 {[%emt 0:01:00]} 17. Rd2 {[%emt 0:00:11]} Qc7 {[%emt 0:01:03]} 18. Nxd4 {[%emt 0:00:07]} Nxd4 {[%emt 0:00:01]} 19. Rxd4 {[%emt 0:00:01]} Rc8 {[%emt 0:00:00]} 20. h4 {[%emt 0:01:06]} h6 {[%emt 0:00:10]} 21. Be3 {[%emt 0:00:41]} Rd8 {[%emt 0:00:22]} 22. Nf4 {[%emt 0:00:27]} Rxd4 {[%emt 0:00:34]} 23. Qxd4 {[%emt 0:00:01]} Qd7 {[%emt 0:00:08]} 24. Qb6 {[%emt 0:00:51]} g5 {[%emt 0:00:01]} 25. Nh5 {[%emt 0:00:06]} Qc6 {[%emt 0:00:13]} 26. Qa7 {[%emt 0:00:19]} Kg8 {[%emt 0:00:01]} 27. Rc1 {[%emt 0:00:01]} Qe4 {[%emt 0:00:02]} 28. Bc5 {[%emt 0:00:02]} Qxh4 {[%emt 0:00:05]} 29. Bxe7 {[%emt 0:00:05]} Qxh5 {[%emt 0:00:01]} 30. Bf6 {[%emt 0:00:01]} Kh7 {[%emt 0:00:02]} 31. Bxh8 {[%emt 0:00:01]} Kxh8 {[%emt 0:00:01]} 32. Qxb7 {[%emt 0:00:01]} f4 {[%emt 0:00:01]} 33. Qe4 {[%emt 0:00:11]} Kg7 {[%emt 0:00:06]} 34. a4 {[%emt 0:00:01]} Qg4 {[%emt 0:00:01]} 35. b5 {[%emt 0:00:01]} axb5 {[%emt 0:00:02]} 36. axb5 {[%emt 0:00:01]} Bc8 {[%emt 0:00:03]} 37. b6 {[%emt 0:00:01]} Qd7 {[%emt 0:00:01]} 38. e6 {[%emt 0:00:00]} Qd2 {[%emt 0:00:04]} 39. Qc2 {[%emt 0:00:07]} 1-0

[Event "GCT Superbet Blitz Poland 2025"]
[Site "Warsaw"]
[Date "2025.04.30"]
[Round "15"]
[White "Duda, Jan-Krzysztof"]
[Black "Praggnanandhaa R"]
[Result "0-1"]
[ECO "A48"]
[WhiteElo "2739"]
[BlackElo "2758"]
[Annotator "ChessBase"]
[PlyCount "82"]
[EventDate "2025.??.??"]
[EventType "blitz"]
[TimeControl "300+2"]

1. d4 {[%emt 0:00:01]} Nf6 {[%emt 0:00:01]} 2. Nf3 {[%emt 0:00:02]} b6 {[%emt 0:00:01]} 3. Bf4 {[%emt 0:00:03]} Bb7 {[%emt 0:00:01]} 4. e3 {[%emt 0:00:02]} g6 {[%emt 0:00:01]} 5. h3 {[%emt 0:00:05]} Bg7 {[%emt 0:00:01]} 6. Be2 {[%emt 0:00:01]} d6 {[%emt 0:00:01]} 7. O-O {[%emt 0:00:03]} O-O {[%emt 0:00:02]} 8. Bh2 {[%emt 0:00:02]} Nbd7 {[%emt 0:00:01]} 9. a4 {[%emt 0:00:02]} a6 {[%emt 0:00:01]} 10. Nbd2 {[%emt 0:00:03]} Re8 {[%emt 0:00:01]} ({RR} 10... Ne4 11. Nxe4 Bxe4 12. Nd2 Bb7 13. c3 Nf6 14. Bd3 Qc8 15. Qe2 Re8 16. f4 c5 17. f5 cxd4 18. exd4 Qc6 19. Rf2 Bh6 20. Bf4 g5 21. Be3 Kh8 22. Bc4 Rf8 23. h4 Rg8 24. Bxf7 Rg7 25. Be6 {Duda,J (2724)-Shevchenko,K (2684) Warsaw POL 2023 1-0 (40)}) 11. c3 {[%emt 0:00:04]} e5 {[%emt 0:00:02]} 12. Qb3 {[%emt 0:00:06]} Rb8 $146 {[%emt 0:00:40]} ({RR} 12... e4 13. Ne1 a5 14. Nc2 Qe7 15. Na3 h5 16. Nb5 Nf8 17. Nc4 Bd5 18. Qa3 Bxc4 19. Bxc4 d5 20. Be2 Ne6 21. c4 c6 22. Nd6 Red8 23. Nxe4 Qe8 24. Nxf6+ Bxf6 25. cxd5 Rxd5 26. Bf3 Rf5 27. Be4 {Howell,D (2670)-Bronstein,O (2465) chess.com INT 2023 1-0 (52)}) ({RR} 12... e4 13. Ne1 a5 14. Nc2 Qe7 15. Na3 h5 16. Nb5 Nf8 17. Nc4 Bd5 18. Qa3 Bxc4 19. Bxc4 d5 20. Be2 Ne6 21. c4 c6 22. Nd6 Red8 23. Nxe4 Qe8 24. Nxf6+ Bxf6 25. cxd5 Rxd5 26. Bf3 Rf5 27. Be4 {Howell,D (2670)-Bronstein,O (2465) chess.com INT 2023 1-0 (52)}) 13. Rfd1 {[%emt 0:00:04]} Qe7 {[%emt 0:00:01]} 14. Rac1 {[%emt 0:00:06]} a5 {[%emt 0:00:40]} 15. Qa3 {[%emt 0:00:23]} e4 {[%emt 0:00:09]} 16. Ne1 {[%emt 0:00:02]} h5 {[%emt 0:00:31]} 17. b4 {[%emt 0:00:02]} Ra8 {[%emt 0:00:03]} 18. b5 {[%emt 0:00:12]} g5 {[%emt 0:00:24]} 19. c4 {[%emt 0:00:02]} Qe6 {[%emt 0:00:17]} 20. Nb3 {[%emt 0:00:32]} Bf8 {[%emt 0:00:01]} 21. Qb2 {[%emt 0:00:06]} h4 {[%emt 0:00:04]} 22. c5 {[%emt 0:01:13]} Bd5 {[%emt 0:00:30]} 23. c6 {[%emt 0:00:02]} Bxb3 {[%emt 0:00:21]} 24. cxd7 {[%emt 0:00:02]} Red8 {[%emt 0:00:01]} 25. d5 {[%emt 0:00:08]} Bxd5 {[%emt 0:00:02]} 26. Rxc7 {[%emt 0:00:04]} Rxd7 {[%emt 0:00:01]} 27. Rc3 {[%emt 0:00:57]} g4 {[%emt 0:01:05]} 28. hxg4 {[%emt 0:00:02]} Bg7 {[%emt 0:00:01]} 29. Qd2 {[%emt 0:00:50]} Bb7 {[%emt 0:00:19]} 30. g5 {[%emt 0:00:10]} Ng4 {[%emt 0:00:11]} 31. Bf4 {[%emt 0:00:24]} Bxc3 {[%emt 0:00:01]} 32. Qxc3 {[%emt 0:00:01]} Rc8 {[%emt 0:00:01]} 33. Qd4 {[%emt 0:00:01]} Rc5 {[%emt 0:00:01]} 34. Qb2 {[%emt 0:00:08]} Ne5 {[%emt 0:00:07]} 35. Qa1 {[%emt 0:00:04]} h3 {[%emt 0:00:04]} 36. Kh2 {[%emt 0:00:01]} Nd3 {[%emt 0:00:09]} 37. Nxd3 {[%emt 0:00:03]} exd3 {[%emt 0:00:02]} 38. Bf3 {[%emt 0:00:01]} hxg2 {[%emt 0:00:05]} 39. Bxb7 {[%emt 0:00:02]} Rxb7 {[%emt 0:00:03]} 40. Rxd3 {[%emt 0:00:03]} f6 {[%emt 0:00:06]} 41. Rxd6 {[%emt 0:00:02]} Rh7+ {[%emt 0:00:01]} 0-1

[Event "GCT Superbet Blitz Poland 2025"]
[Site "Warsaw"]
[Date "2025.04.30"]
[Round "15"]
[White "Fedoseev, Vladimir"]
[Black "Gavrilescu, David"]
[Result "1-0"]
[ECO "D00"]
[WhiteElo "2739"]
[BlackElo "2554"]
[Annotator "ChessBase"]
[PlyCount "143"]
[EventDate "2025.??.??"]
[EventType "blitz"]
[TimeControl "300+2"]

1. d4 {[%emt 0:00:01]} d5 {[%emt 0:00:01]} 2. Bg5 {[%emt 0:00:01]} c5 {[%emt 0:00:04]} 3. e3 {[%emt 0:00:01]} Nc6 {[%emt 0:00:06]} 4. c3 {[%emt 0:00:12]} cxd4 {[%emt 0:00:37]} ({RR} 4... Bf5 5. Nd2 f6 6. Bh4 e6 7. Ngf3 g5 8. Bg3 h5 9. h3 h4 10. Bh2 c4 11. Be2 b5 12. O-O Bd6 13. b3 Rc8 14. a4 a6 15. axb5 axb5 16. bxc4 bxc4 17. Bxd6 Qxd6 18. e4 Bg6 19. Re1 {Piorun,K (2611)-Riazantsev,A (2639) Moscow 2019 1-0 (34)}) 5. exd4 {[%emt 0:00:02]} Bf5 {[%emt 0:00:03]} 6. Nd2 $146 {[%emt 0:00:06]} ({RR} 6. Bd3 Bxd3 7. Qxd3 Qb6 8. Bc1 Nf6 9. Nf3 e6 10. O-O Bd6 11. a4 O-O 12. b4 a5 13. b5 Ne7 14. Be3 Nf5 15. Nbd2 Rac8 16. Rfc1 Qc7 17. Rc2 Ng4 18. h3 Bh2+ 19. Kf1 Ngxe3+ 20. fxe3 Ng3+ {Jocev,M (2246)-Kopylov,D (2369) chess.com INT 2024 1-0 (58)}) ({RR} 6. Bd3 Bxd3 7. Qxd3 Nf6 8. Bxf6 gxf6 9. Nf3 e6 10. Nbd2 Bd6 11. O-O-O Qa5 12. Kb1 O-O-O 13. Rc1 h5 14. g3 Kb8 15. Rhe1 Rc8 16. Nb3 Qa4 17. Qd1 Na5 18. Nxa5 Qxa5 19. h4 Rc6 20. Re2 Ra6 {Tristan,L (2531)-Viskelis,D (2154) chess.com INT 2025 1-0 (32)}) ({RR} 6. Qb3 Qd7 7. Nf3 e6 8. Nbd2 f6 9. Bf4 g5 10. Be3 h5 11. h4 g4 12. Ng1 Nh6 13. Ne2 Bd3 14. Nf4 Bxf1 15. Nxf1 Nf5 16. Ng3 Nxe3 17. fxe3 Qf7 18. Rf1 Bd6 19. e4 dxe4 20. Nxe4 O-O-O {Tymrakiewicz,R (2135)-Kuchava,A (2101) chess.com INT 2024 1-0}) 6... Qc7 {[%emt 0:00:07]} 7. Ngf3 {[%emt 0:00:08]} h6 {[%emt 0:00:06]} 8. Bh4 {[%emt 0:00:02]} e6 {[%emt 0:00:02]} 9. Bb5 {[%emt 0:00:16]} Bd6 {[%emt 0:00:03]} 10. O-O {[%emt 0:00:14]} Nge7 {[%emt 0:00:16]} 11. Re1 {[%emt 0:00:05]} O-O {[%emt 0:00:11]} 12. Qe2 {[%emt 0:00:11]} a6 {[%emt 0:00:28]} 13. Bd3 {[%emt 0:00:08]} Bxd3 {[%emt 0:00:08]} 14. Qxd3 {[%emt 0:00:01]} Ng6 {[%emt 0:00:11]} 15. Bg3 {[%emt 0:00:02]} Bxg3 {[%emt 0:00:04]} 16. hxg3 {[%emt 0:00:02]} Rad8 {[%emt 0:00:03]} 17. a4 {[%emt 0:00:03]} Rfe8 {[%emt 0:00:05]} 18. Nb3 {[%emt 0:00:08]} e5 {[%emt 0:00:11]} 19. dxe5 {[%emt 0:00:27]} Ngxe5 {[%emt 0:00:02]} 20. Nxe5 {[%emt 0:00:02]} Nxe5 {[%emt 0:00:02]} 21. Qe2 {[%emt 0:00:18]} Qc4 {[%emt 0:00:14]} 22. Nd4 {[%emt 0:00:12]} Qc8 {[%emt 0:00:21]} 23. Qh5 {[%emt 0:00:27]} Nd3 {[%emt 0:00:19]} 24. Re2 {[%emt 0:00:03]} Re4 {[%emt 0:00:25]} 25. Rd1 {[%emt 0:00:12]} Nc5 {[%emt 0:00:02]} 26. a5 {[%emt 0:00:10]} Rde8 {[%emt 0:00:23]} 27. Rxe4 {[%emt 0:00:16]} dxe4 {[%emt 0:00:22]} 28. Nf5 {[%emt 0:00:01]} g6 {[%emt 0:00:41]} 29. Nxh6+ {[%emt 0:00:04]} Kg7 {[%emt 0:00:01]} 30. Qg5 {[%emt 0:00:02]} Nd3 {[%emt 0:00:05]} 31. Ng4 {[%emt 0:00:09]} Qe6 {[%emt 0:00:02]} 32. f3 {[%emt 0:00:40]} Rh8 {[%emt 0:00:09]} 33. fxe4 {[%emt 0:00:03]} Qxe4 {[%emt 0:00:06]} 34. Qf6+ {[%emt 0:00:11]} Kg8 {[%emt 0:00:02]} 35. Qd8+ {[%emt 0:00:10]} Kg7 {[%emt 0:00:01]} 36. Qxd3 {[%emt 0:00:03]} Qxg4 {[%emt 0:00:01]} 37. Qd4+ {[%emt 0:00:01]} Qxd4+ {[%emt 0:00:01]} 38. Rxd4 {[%emt 0:00:01]} Rh5 {[%emt 0:00:07]} 39. b4 {[%emt 0:00:01]} Rh8 {[%emt 0:00:03]} 40. Rc4 {[%emt 0:00:02]} Rb8 {[%emt 0:00:03]} 41. Kf2 {[%emt 0:00:02]} Kf6 {[%emt 0:00:02]} 42. Ke3 {[%emt 0:00:02]} Ke6 {[%emt 0:00:01]} 43. Rc7 {[%emt 0:00:02]} f6 {[%emt 0:00:03]} 44. Kd4 {[%emt 0:00:05]} Kd6 {[%emt 0:00:01]} 45. Rf7 {[%emt 0:00:01]} Ke6 {[%emt 0:00:01]} 46. Rg7 {[%emt 0:00:01]} g5 {[%emt 0:00:02]} 47. g4 {[%emt 0:00:07]} Kd6 {[%emt 0:00:02]} 48. c4 {[%emt 0:00:05]} Rd8 {[%emt 0:00:02]} 49. b5 {[%emt 0:00:05]} axb5 {[%emt 0:00:03]} 50. cxb5 {[%emt 0:00:01]} Ra8 {[%emt 0:00:01]} 51. Rxb7 {[%emt 0:00:03]} Rxa5 {[%emt 0:00:02]} 52. Rb6+ {[%emt 0:00:01]} Kc7 {[%emt 0:00:01]} 53. Rc6+ {[%emt 0:00:04]} Kb7 {[%emt 0:00:01]} 54. Rxf6 {[%emt 0:00:24]} Ra2 {[%emt 0:00:06]} 55. Rf5 {[%emt 0:00:02]} Ra4+ {[%emt 0:00:02]} 56. Kc5 {[%emt 0:00:02]} Rxg4 {[%emt 0:00:01]} 57. Rf7+ {[%emt 0:00:02]} Kc8 {[%emt 0:00:01]} 58. Rf2 {[%emt 0:00:05]} Kb7 {[%emt 0:00:02]} 59. Re2 {[%emt 0:00:02]} Rg3 {[%emt 0:00:01]} 60. Rb2 {[%emt 0:00:03]} Rd3 {[%emt 0:00:02]} 61. Kc4 {[%emt 0:00:01]} Rd1 {[%emt 0:00:03]} 62. Re2 {[%emt 0:00:03]} Rc1+ {[%emt 0:00:03]} 63. Kd4 {[%emt 0:00:02]} Kb6 {[%emt 0:00:02]} 64. Ke5 {[%emt 0:00:05]} Kxb5 {[%emt 0:00:03]} 65. Kf5 {[%emt 0:00:01]} Rc5+ {[%emt 0:00:03]} 66. Re5 {[%emt 0:00:05]} Rxe5+ {[%emt 0:00:02]} 67. Kxe5 {[%emt 0:00:01]} Kc6 {[%emt 0:00:01]} 68. Kf5 {[%emt 0:00:01]} Kd7 {[%emt 0:00:01]} 69. Kxg5 {[%emt 0:00:02]} Ke7 {[%emt 0:00:01]} 70. Kg6 {[%emt 0:00:01]} Kf8 {[%emt 0:00:01]} 71. g4 {[%emt 0:00:06]} Kg8 {[%emt 0:00:01]} 72. g5 {[%emt 0:00:00]} 1-0

[Event "GCT Superbet Blitz Poland 2025"]
[Site "Warsaw"]
[Date "2025.04.30"]
[Round "15"]
[White "Vachier-Lagrave, Maxime"]
[Black "Deac, Bogdan-Daniel"]
[Result "1-0"]
[ECO "C82"]
[WhiteElo "2722"]
[BlackElo "2668"]
[Annotator "ChessBase"]
[PlyCount "115"]
[EventDate "2025.??.??"]
[EventType "blitz"]
[TimeControl "300+2"]

1. e4 {[%emt 0:00:01]} e5 {[%emt 0:00:01]} 2. Nf3 {[%emt 0:00:01]} Nc6 {[%emt 0:00:01]} 3. Bb5 {[%emt 0:00:01]} a6 {[%emt 0:00:01]} 4. Ba4 {[%emt 0:00:01]} Nf6 {[%emt 0:00:02]} 5. O-O {[%emt 0:00:02]} Nxe4 {[%emt 0:00:05]} 6. d4 {[%emt 0:00:01]} b5 {[%emt 0:00:01]} 7. Bb3 {[%emt 0:00:01]} d5 {[%emt 0:00:01]} 8. dxe5 {[%emt 0:00:02]} Be6 {[%emt 0:00:01]} 9. c3 {[%emt 0:00:01]} Bc5 {[%emt 0:00:10]} 10. Nbd2 {[%emt 0:00:04]} O-O {[%emt 0:00:02]} 11. Bc2 {[%emt 0:00:01]} Nxf2 {[%emt 0:00:02]} 12. Rxf2 {[%emt 0:00:02]} Bxf2+ {[%emt 0:00:03]} 13. Kxf2 {[%emt 0:00:01]} f6 {[%emt 0:00:01]} 14. Kg1 {[%emt 0:00:07]} fxe5 {[%emt 0:00:01]} 15. Nf1 {[%emt 0:00:01]} Bg4 {[%emt 0:00:02]} ({RR} 15... Qd6 16. Be3 Bf5 17. Bb3 Rad8 18. Qe1 Na5 19. Qf2 Nb7 20. Re1 c5 21. Ng3 Bd3 22. Qd2 c4 23. Bd1 Rd7 24. Bf2 Rdf7 25. Nh1 e4 26. Nd4 Qg6 27. h4 Nc5 28. h5 Qd6 29. Bg4 h6 30. Qe3 {Nakamura,H (2760)-Caruana,F (2783) Madrid 2022 1-0 (74)}) ({RR} 15... Qd6 16. Be3 Rad8 17. Qe1 Bf5 18. Bxf5 Rxf5 19. Ng3 Rff8 20. Rd1 Qg6 21. Qe2 e4 22. Nh4 Qe6 23. Qh5 g6 24. Qg5 Qe7 25. Qg4 Ne5 26. Nhf5 Nxg4 27. Nxe7+ Kf7 28. Bc5 Rfe8 29. Rf1+ Nf6 30. Bd4 {Jin,H (2240)-Zhou,Y (2037) Senta SRB 2025 1-0 (50)}) 16. Ne3 {[%emt 0:00:12]} ({RR} 16. Bb3 Bxf3 17. gxf3 Ne7 18. Bg5 c6 19. Bc2 Qd6 20. Ng3 Ng6 21. Qd3 Rf7 22. Rf1 Raf8 23. h4 e4 24. Nxe4 Qe5 25. Bb3 h6 26. Rf2 hxg5 27. Nxg5 Qe1+ 28. Qf1 Qxf1+ 29. Kxf1 {0-1 (29) Bacrot,E (2677)-Deac,B (2683) chess.com INT 2024}) 16... Be6 {[%emt 0:00:02]} 17. b4 {[%emt 0:00:12]} a5 $146 {[%emt 0:00:32]} ({RR} 17... h6 18. Bb2 Qe8 19. a4 Rd8 20. axb5 axb5 21. Qe2 e4 22. Nd4 Nxd4 23. cxd4 c6 24. Bc3 Ra8 25. Rc1 Ra2 26. h3 Qg6 27. Kh2 Qg5 28. Qe1 Bxh3 29. gxh3 Rf3 30. Bd2 Qf4+ 31. Kg2 Ra3 32. Nf1 {Vokhidov,S (2681)-Peng,L (2516) chess.com INT 2024 0-1 (39)}) ({RR} 17... h6 18. a4 Qd6 19. Bb2 Ne7 20. Qe1 e4 21. Nd4 Bd7 22. a5 Ng6 23. Nxd5 Rae8 24. Qg3 Re5 25. c4 bxc4 26. Ne3 Nf4 27. Nxc4 Qxd4+ 28. Bxd4 Ne2+ 29. Kh1 Nxg3+ 30. hxg3 Rd5 31. Bc5 Re8 32. Kg1 {Nepomniachtchi,I (2793)-Tabatabaei,M (2660) Almaty KAZ 2022 1-0 (45)}) ({RR} 17... h6 18. Bb2 Qe8 19. a4 Rd8 20. axb5 axb5 21. Qe2 e4 22. Nd4 Nxd4 23. cxd4 c6 24. Bc3 Ra8 25. Rc1 Ra2 26. h3 Qg6 27. Kh2 Qg5 28. Qe1 Bxh3 29. gxh3 Rf3 30. Bd2 Qf4+ 31. Kg2 Ra3 32. Nf1 {Vokhidov,S (2681)-Peng,L (2516) chess.com INT 2024 0-1 (39)}) 18. bxa5 {[%emt 0:00:05]} Rxa5 {[%emt 0:00:22]} 19. Bb3 {[%emt 0:00:01]} e4 {[%emt 0:00:01]} 20. Nd4 {[%emt 0:00:08]} Nxd4 {[%emt 0:00:05]} 21. cxd4 {[%emt 0:00:15]} c6 {[%emt 0:01:10]} 22. Bd2 {[%emt 0:00:06]} Ra8 {[%emt 0:00:13]} 23. Bb4 {[%emt 0:00:02]} Rf7 {[%emt 0:00:02]} 24. Rc1 {[%emt 0:00:03]} Rc8 {[%emt 0:00:38]} 25. Qe1 {[%emt 0:00:14]} Qf6 {[%emt 0:01:26]} 26. Bc5 {[%emt 0:00:05]} h6 {[%emt 0:00:09]} 27. Qg3 {[%emt 0:00:07]} Kh7 {[%emt 0:00:05]} 28. h3 {[%emt 0:00:03]} Qf4 {[%emt 0:00:23]} 29. Kh2 {[%emt 0:00:18]} Qf6 {[%emt 0:00:11]} 30. Rf1 {[%emt 0:00:09]} Qg6 {[%emt 0:00:04]} 31. Qxg6+ {[%emt 0:00:03]} Kxg6 {[%emt 0:00:00]} 32. Rc1 {[%emt 0:00:01]} h5 {[%emt 0:00:04]} 33. Kg3 {[%emt 0:00:11]} Kg5 {[%emt 0:00:03]} 34. h4+ {[%emt 0:00:06]} Kg6 {[%emt 0:00:01]} 35. Bd6 {[%emt 0:00:01]} Kh7 {[%emt 0:00:01]} 36. Bf4 {[%emt 0:00:12]} g6 {[%emt 0:00:01]} 37. Rc5 {[%emt 0:00:05]} Kg8 {[%emt 0:00:04]} 38. Nc2 {[%emt 0:00:06]} Kh7 {[%emt 0:00:03]} 39. Nb4 {[%emt 0:00:01]} Bd7 {[%emt 0:00:01]} 40. Rc3 {[%emt 0:00:16]} Rcf8 {[%emt 0:00:03]} 41. Bg5 {[%emt 0:00:09]} Rc8 {[%emt 0:00:01]} 42. Rc1 {[%emt 0:00:04]} Kg7 {[%emt 0:00:02]} 43. Na6 {[%emt 0:00:02]} Kh7 {[%emt 0:00:01]} 44. Nc5 {[%emt 0:00:01]} Bf5 {[%emt 0:00:01]} 45. a4 {[%emt 0:00:15]} bxa4 {[%emt 0:00:01]} 46. Bxa4 {[%emt 0:00:00]} Bg4 {[%emt 0:00:06]} 47. Rc3 {[%emt 0:00:06]} Ra7 {[%emt 0:00:02]} 48. Bf4 {[%emt 0:00:11]} Rf7 {[%emt 0:00:01]} 49. Rb3 {[%emt 0:00:07]} Bd1 {[%emt 0:00:01]} 50. Rb4 {[%emt 0:00:03]} Bxa4 {[%emt 0:00:02]} 51. Rxa4 {[%emt 0:00:01]} Rcf8 {[%emt 0:00:04]} 52. Ne6 {[%emt 0:00:02]} Rxf4 {[%emt 0:00:02]} 53. Nxf4 {[%emt 0:00:01]} Rb8 {[%emt 0:00:03]} 54. Ra7+ {[%emt 0:00:05]} Kh6 {[%emt 0:00:01]} 55. Rc7 {[%emt 0:00:03]} Rb4 {[%emt 0:00:01]} 56. Ne6 {[%emt 0:00:03]} g5 {[%emt 0:00:01]} 57. hxg5+ {[%emt 0:00:04]} Kg6 {[%emt 0:00:00]} 58. Kf4 {[%emt 0:00:01]} 1-0

[Event "GCT Superbet Blitz Poland 2025"]
[Site "Warsaw"]
[Date "2025.04.30"]
[Round "15"]
[White "Topalov, Veselin"]
[Black "Aravindh, Chithambaram VR."]
[Result "0-1"]
[ECO "A50"]
[WhiteElo "2717"]
[BlackElo "2749"]
[Annotator "ChessBase"]
[PlyCount "101"]
[EventDate "2025.??.??"]
[EventType "blitz"]
[TimeControl "300+2"]

1. d4 {[%emt 0:00:01]} Nf6 {[%emt 0:00:02]} 2. Nf3 {[%emt 0:00:04]} b6 {[%emt 0:00:01]} 3. g3 {[%emt 0:00:02]} Bb7 {[%emt 0:00:01]} 4. c4 {[%emt 0:00:01]} g6 {[%emt 0:00:02]} 5. Bg2 {[%emt 0:00:01]} Bg7 {[%emt 0:00:01]} 6. O-O {[%emt 0:00:05]} O-O {[%emt 0:00:02]} 7. d5 {[%emt 0:00:12]} Na6 {[%emt 0:00:02]} 8. Nc3 {[%emt 0:00:02]} Nc5 {[%emt 0:00:01]} 9. Nd4 {[%emt 0:00:04]} e5 {[%emt 0:00:01]} 10. Nc2 {[%emt 0:00:08]} d6 {[%emt 0:00:03]} ({RR} 10... a5 11. b3 d6 12. e4 Bc8 13. Na3 Ne8 14. Nab5 Bd7 15. Rb1 f5 16. f3 f4 17. a3 g5 18. b4 Nb7 19. g4 h5 20. h3 Rf7 21. Kf2 Bf8 22. Rg1 Rh7 23. Bf1 Nf6 24. Ke1 Qc8 25. Rb2 {Erigaisi,A (2722)-Carlsen,M (2859) Wijk aan Zee NED 2023 0-1 (56)}) ({RR} 10... a5 11. e4 d6 12. Bg5 h6 13. Be3 Bc8 14. h3 Nh7 15. Qd2 h5 16. f4 h4 17. fxe5 Bxe5 18. g4 Bd7 19. Nd4 Bg7 20. Rae1 Kh8 21. Kh1 Bf6 22. Nf3 Re8 23. g5 Bxc3 24. Qxc3+ Kg8 25. Bxc5 {Pagan,J (2092)-Chirilov,J (2245) New York USA 2025 0-1 (51)}) 11. b4 $146 {[%emt 0:00:09]} ({RR} 11. e4 a5 12. Be3 Bc8 13. f3 Ne8 14. Qd2 f5 15. exf5 Bxf5 16. b3 Nf6 17. Rae1 Nd3 18. Re2 Nc5 19. Ref2 Bd3 20. Re1 Bf5 21. g4 Bd7 22. h3 h5 23. g5 Ne8 24. f4 Bf5 25. fxe5 Bxe5 {Kurajica,B (2418)-Fiorito,F (2281) San Cristobal de La Laguna ESP 2024 ½-½ (45)}) ({RR} 11. e4 a5 12. Bg5 Qd7 13. Qd2 Rae8 14. Rab1 Nh5 15. Bf3 f5 16. exf5 Qxf5 17. Bxh5 gxh5 18. f3 Qg6 19. Be3 Bc8 20. Bxc5 bxc5 21. Ne4 Rf7 22. Qe2 Bh3 23. Rf2 Ref8 24. Ne3 Bg4 25. Nxg4 hxg4 {Turov,M (2586)-Svane,R (2506) Oslo 2014 ½-½ (51)}) ({RR} 11. e4 a5 12. b3 h6 13. Be3 Bc8 14. h3 Nh7 15. Qd2 f5 16. Bxh6 f4 17. Bxg7 Kxg7 18. Ne1 g5 19. Nf3 g4 20. hxg4 Bxg4 21. Nh2 Bd7 22. gxf4 Rxf4 23. Ne2 Rh4 24. f4 Qe7 25. fxe5 dxe5 {Ahmad,K (2388)-Oparin,G (2662) chess.com INT 2024 ½-½ (73)}) 11... Ncd7 {[%emt 0:00:03]} 12. e4 {[%emt 0:00:01]} Ne8 {[%emt 0:00:08]} 13. a3 {[%emt 0:00:07]} f5 {[%emt 0:00:02]} 14. exf5 {[%emt 0:00:10]} gxf5 {[%emt 0:00:01]} 15. Rb1 {[%emt 0:00:07]} Nef6 {[%emt 0:00:10]} 16. Ne3 {[%emt 0:00:05]} f4 {[%emt 0:00:30]} 17. Nf5 {[%emt 0:00:01]} Rf7 {[%emt 0:00:01]} 18. gxf4 {[%emt 0:00:12]} Bc8 {[%emt 0:00:12]} 19. Kh1 {[%emt 0:00:01]} Bf8 {[%emt 0:00:11]} 20. Ng3 {[%emt 0:00:39]} Kh8 {[%emt 0:00:07]} 21. f5 {[%emt 0:00:01]} Bg7 {[%emt 0:00:22]} 22. Bg5 {[%emt 0:00:03]} Qf8 {[%emt 0:00:06]} 23. Nb5 {[%emt 0:00:08]} Nb8 {[%emt 0:00:25]} 24. Rb3 {[%emt 0:00:11]} a6 {[%emt 0:00:05]} 25. Nc3 {[%emt 0:00:02]} Nbd7 {[%emt 0:00:04]} 26. Qd2 {[%emt 0:00:18]} Ng8 {[%emt 0:00:03]} 27. Nce4 {[%emt 0:00:24]} Ndf6 {[%emt 0:00:10]} 28. f3 {[%emt 0:00:22]} Bb7 {[%emt 0:00:21]} 29. Be3 {[%emt 0:00:14]} b5 {[%emt 0:00:09]} 30. cxb5 {[%emt 0:00:09]} axb5 {[%emt 0:00:03]} 31. Ng5 {[%emt 0:00:02]} Bxd5 {[%emt 0:00:05]} 32. Nxf7+ {[%emt 0:00:04]} Qxf7 {[%emt 0:00:03]} 33. Rc3 {[%emt 0:00:02]} Bc4 {[%emt 0:00:03]} 34. f4 {[%emt 0:00:15]} Re8 {[%emt 0:00:16]} 35. fxe5 {[%emt 0:00:02]} Bxf1 {[%emt 0:00:04]} 36. Bxf1 {[%emt 0:00:10]} Rxe5 {[%emt 0:00:04]} 37. Bg2 {[%emt 0:00:02]} Nd5 {[%emt 0:00:07]} 38. Bxd5 {[%emt 0:00:06]} Rxd5 {[%emt 0:00:01]} 39. Rxc7 {[%emt 0:00:14]} Qxc7 {[%emt 0:01:22]} 40. Qxd5 {[%emt 0:00:01]} Be5 {[%emt 0:00:01]} 41. Qxb5 {[%emt 0:00:25]} Qc3 {[%emt 0:00:03]} 42. Qe2 {[%emt 0:00:15]} Qxa3 {[%emt 0:00:02]} 43. b5 {[%emt 0:00:00]} Nf6 {[%emt 0:00:02]} 44. b6 {[%emt 0:00:08]} Qb3 {[%emt 0:00:01]} 45. Bf2 {[%emt 0:00:15]} Nd5 {[%emt 0:00:09]} 46. Qh5 {[%emt 0:00:16]} Nf6 {[%emt 0:00:10]} 47. Qe2 {[%emt 0:00:00]} Nd5 {[%emt 0:00:01]} 48. Qe4 {[%emt 0:00:02]} Kg7 {[%emt 0:00:17]} 49. Bg1 {[%emt 0:00:09]} Nf6 {[%emt 0:00:03]} 50. Qc6 {[%emt 0:00:03]} d5 {[%emt 0:00:02]} 51. Kg2 {[%emt 0:00:07]} 0-1